bitfinex/quotes_ETHUSD_20241003
["timestamp","ask_amount","ask_price","bid_price","bid_amount"]
[1727939606910,5.53668694,2389.6,2389.1,4.94182165]
[1727939607121,3.34783,2389.7,2389.2,4.10188]
[1727939607122,5.53666694,2389.7,2389.2,4.10188]
[1727939607333,2.18883694,2389.8,2389.4,0.7536]
[1727939607525,10.7375,2389.9,2389.4,4.10165]
[1727939607891,14.085,2389.9,2389.4,4.10165]
[1727939608401,14.085,2389.9,2389.4,4.846644]
[1727939608731,3.34758,2389.8,2389.4,1.498594]
[1727939610428,3.3477,2389.7,2389.4,0.7536]
[1727939615193,3.3475,2389.9,2389.4,0.7536]
[1727939615529,3.34758,2389.8,2389.4,0.7536]
[1727939617428,4.99859302,2390.0,2389.4,0.7536]
[1727939617743,3.34791,2389.6,2389.4,0.7536]
[1727939618030,3.34792,2389.6,2389.4,0.7536]
[1727939620238,3.34781,2389.7,2389.4,0.7536]
[1727939620239,6.69562,2389.7,2389.4,0.7536]
[1727939620442,3.34786,2389.6,2389.4,0.7536]
[1727939620742,3.34781,2389.7,2389.4,0.7536]
[1727939621104,3.34756,2389.8,2389.4,0.7536]
[1727939622310,3.34781,2389.7,2389.4,0.7536]
[1727939622819,3.34791,2389.6,2389.4,0.7536]
[1727939625705,3.34812,2389.4,2388.9,3.34871]
[1727939625952,3.34835,2389.3,2389.0,0.8325]
[1727939626157,3.34841,2389.2,2389.0,0.8325]
[1727939630224,6.6969,2389.2,2389.0,0.8325]
[1727939630605,3.34841,2389.2,2389.0,0.8325]
[1727939631019,6.69691,2389.2,2389.0,0.8325]
[1727939632159,6.69691,2389.2,2388.5,3.34928]
[1727939632160,3.34854,2389.1,2388.5,3.34937]
[1727939632317,1.29824193,2389.2,2388.4,0.818]
[1727939632318,3.34911,2388.7,2388.4,0.818]
[1727939632511,3.34926,2388.6,2388.4,0.818]
[1727939632748,3.34911,2388.7,2388.4,0.818]
[1727939634203,4.64714193,2388.9,2388.4,0.818]
[1727939634204,6.69785,2388.9,2388.4,1.234778]
[1727939634409,6.69785,2388.9,2388.4,0.818]
[1727939634866,3.34905,2388.8,2388.4,0.818]
[1727939635040,3.34916,2388.7,2388.4,0.818]
[1727939635240,1.29824193,2388.8,2388.4,0.818]
[1727939635458,3.34933,2388.6,2388.4,0.818]
[1727939638113,4.64729193,2388.8,2388.4,0.818]
[1727939638320,3.3491,2388.7,2388.4,0.818]
[1727939638801,3.34905,2388.8,2388.4,1.234779]
[1727939640293,3.34882,2388.9,2388.4,4.584219]
[1727939640595,4.64697193,2389.0,2388.4,0.818]
[1727939640596,3.34903,2388.8,2388.4,0.818]
[1727939641092,6.69807,2388.8,2388.4,0.818]
[1727939641288,3.34903,2388.8,2388.4,0.818]
[1727939641783,3.34903,2388.8,2388.4,4.16751]
[1727939641965,3.34903,2388.8,2388.4,4.919229]
[1727939642822,3.34903,2388.8,2388.4,1.569719]
[1727939643114,3.34903,2388.8,2388.4,0.818]
[1727939644476,3.34912,2388.7,2388.4,0.818]
[1727939645178,4.64727193,2388.8,2388.4,0.818]
[1727939645781,7.99633193,2388.8,2388.4,0.818]
[1727939646494,3.3492,2388.7,2388.4,0.818]
[1727939646824,4.64759193,2388.6,2388.0,4.10721]
[1727939647128,1.29824193,2388.6,2388.0,0.7572]
[1727939647291,4.64807193,2388.2,2388.0,0.7572]
[1727939650941,4.64807193,2388.2,2387.5,0.7658]
[1727939650942,1.29824193,2388.2,2387.5,0.7658]
[1727939651167,3.0,2388.5,2387.3,0.7658]
[1727939651168,1.29824193,2387.6,2387.3,0.7658]
[1727939651639,3.35083,2387.5,2387.0,0.8067]
[1727939651800,3.35083,2387.5,2387.0,1.141858]
[1727939652242,3.35083,2387.5,2387.0,4.493308]
[1727939652456,4.64902193,2387.6,2387.0,4.493308]
[1727939652639,4.64902193,2387.6,2387.1,0.72132601]
[1727939652958,7.99978193,2387.6,2387.1,0.72132601]
[1727939653117,4.64900193,2387.6,2387.1,0.72132601]
[1727939653443,4.64900193,2387.6,2387.0,0.8067]
[1727939653632,3.35093,2387.4,2387.0,0.8067]
[1727939654330,3.35076,2387.6,2387.0,0.8067]
[1727939654515,6.70152,2387.6,2387.0,0.8067]
[1727939654845,3.35079,2387.5,2387.0,0.8067]
[1727939655213,3.35094,2387.4,2387.0,0.8067]
[1727939656519,3.35076,2387.6,2387.0,4.573981]
[1727939656520,6.70153,2387.6,2387.0,4.573981]
[1727939656709,3.35091,2387.5,2387.0,1.222521]
[1727939656910,3.35076,2387.6,2387.0,1.222521]
[1727939656911,3.35094,2387.4,2387.0,1.222521]
[1727939657883,3.35108,2387.3,2387.0,1.222521]
[1727939658094,3.35106,2387.3,2387.0,0.8067]
[1727939658645,3.35094,2387.4,2387.0,0.8067]
[1727939658845,3.35094,2387.4,2386.7,3.3518]
[1727939658846,6.35108,2387.3,2386.8,0.8108]
[1727939659087,3.35094,2387.4,2386.8,0.8108]
[1727939659243,3.35094,2387.4,2386.9,3.35162]
[1727939659449,3.35094,2387.4,2386.8,1.227062]
[1727939659646,3.35094,2387.4,2386.8,4.578792]
[1727939660168,3.35121,2387.2,2386.8,1.227062]
[1727939660386,3.35121,2387.2,2386.8,0.8108]
[1727939660387,3.0,2387.1,2386.8,0.8108]
[1727939662553,3.35121,2387.2,2386.8,0.8108]
[1727939663056,3.35121,2387.2,2386.8,1.227057]
[1727939664189,3.35136,2387.1,2386.8,1.227057]
[1727939664490,3.35121,2387.2,2386.8,0.8108]
[1727939664957,6.70252,2387.2,2386.8,0.8108]
[1727939665164,3.35121,2387.2,2386.8,0.8108]
[1727939665482,6.70248,2387.2,2386.8,0.8108]
[1727939665693,3.0,2387.2,2386.9,0.7787]
[1727939666946,3.35106,2387.3,2386.9,0.7787]
[1727939669176,3.35123,2387.2,2386.9,0.7787]
[1727939669388,6.70257,2387.2,2386.9,0.7787]
[1727939669549,6.70251,2387.2,2386.9,0.7787]
[1727939669750,3.35123,2387.2,2386.9,0.7787]
[1727939670564,3.35138,2387.1,2386.9,0.7787]
[1727939672188,6.70254,2387.2,2386.9,0.7787]
[1727939672505,3.35123,2387.2,2386.9,0.7787]
[1727939673379,6.70253,2387.2,2386.9,0.7787]
[1727939673969,3.35123,2387.2,2386.9,0.7787]
[1727939674769,6.70251,2387.2,2386.9,0.7787]
[1727939674969,3.35123,2387.2,2386.9,0.7787]
[1727939676170,3.35142,2387.1,2386.9,0.7787]
[1727939676706,3.35144,2387.1,2386.9,0.7787]
[1727939677067,3.35144,2387.1,2386.7,0.7595]
[1727939678467,3.35149,2387.0,2386.7,0.7595]
[1727939679914,3.35134,2387.1,2386.7,0.7595]
[1727939680619,4.65161308,2387.2,2386.7,4.522554]
[1727939680620,3.35123,2387.2,2386.7,4.522554]
[1727939681272,6.70253,2387.2,2386.7,4.522554]
[1727939681472,6.70251,2387.2,2386.7,4.522554]
[1727939682124,6.70253,2387.2,2386.7,4.522554]
[1727939683372,10.39,2387.6,2386.8,0.8129]
[1727939683747,3.3512,2387.2,2387.0,0.8129]
[1727939684516,4.65139308,2387.4,2387.0,0.8129]
[1727939684517,3.0,2387.3,2387.0,0.8129]
[1727939685398,6.35107,2387.3,2387.0,0.8129]
[1727939687615,3.0,2387.3,2387.0,0.8129]
[1727939687788,12.04111308,2387.6,2387.0,1.229351]
[1727939687999,3.35073,2387.6,2387.1,3.35134]
[1727939688207,3.35073,2387.6,2387.2,0.8004]
[1727939688605,6.70145,2387.6,2387.2,0.8004]
[1727939688916,3.35072,2387.6,2387.2,1.2572191]
[1727939689440,0.43716734,2387.5,2387.3,0.8199]
[1727939689935,3.35047,2387.8,2387.3,0.8199]
[1727939690232,3.35047,2387.8,2387.4,0.7742]
[1727939690538,3.35047,2387.8,2387.4,0.58823622]
[1727939690836,6.70097,2387.8,2387.5,0.7742]
[1727939690992,3.35052,2387.7,2387.5,0.7742]
[1727939691192,3.35047,2387.8,2387.5,0.7742]
[1727939691808,14.17731446,2388.0,2387.5,0.7742]
[1727939691809,3.0,2387.9,2387.5,0.7742]
[1727939692290,6.35029,2387.9,2387.5,0.7742]
[1727939692491,3.35037,2387.8,2387.5,0.7742]
[1727939692900,3.0,2387.9,2387.6,0.7662]
[1727939693119,3.35029,2387.9,2387.6,0.7662]
[1727939693803,3.78729446,2388.0,2387.6,0.84995986]
[1727939694007,3.35015,2388.0,2387.7,0.7717]
[1727939694244,3.35015,2388.0,2387.8,0.8]
[1727939699710,3.34998,2388.1,2387.8,0.8]
[1727939700311,8.96979962,2388.5,2387.5,5.1224107]
[1727939700312,0.43712411,2388.5,2388.0,0.8104]
[1727939700511,0.43712411,2388.5,2388.3,0.7536]
[1727939700765,6.83250859,2388.9,2388.3,0.7536]
[1727939700912,3.34973,2388.3,2388.1,0.7536]
[1727939701110,3.34973,2388.3,2387.7,6.70083]
[1727939701111,4.65004308,2388.3,2387.7,0.7517]
[1727939701439,3.34926,2388.6,2387.7,0.7517]
[1727939701440,1.30038308,2388.1,2387.7,0.7517]
[1727939701757,3.35005,2388.1,2387.7,0.7517]
[1727939701958,3.35005,2388.1,2387.7,1.161947]
[1727939701959,6.7001,2388.1,2387.7,1.161947]
[1727939702157,6.69956,2388.3,2387.7,1.161947]
[1727939702315,3.34976,2388.3,2387.7,4.512417]
[1727939702529,3.34958,2388.4,2387.9,0.7821]
[1727939702728,6.34967,2388.3,2387.9,0.7821]
[1727939703565,3.34958,2388.4,2387.9,3.35019]
[1727939703729,3.34934,2388.6,2388.1,0.8113]
[1727939703939,3.34934,2388.6,2388.2,0.8113]
[1727939704460,3.34905,2388.8,2388.3,0.8143]
[1727939704821,6.69809,2388.8,2388.3,0.8143]
[1727939705023,3.34904,2388.8,2388.4,0.42342887]
[1727939705220,3.34877,2389.0,2388.5,0.8265]
[1727939705221,3.34882,2388.9,2388.5,0.8265]
[1727939705421,3.34896,2388.8,2388.5,0.8265]
[1727939705661,3.34918,2388.7,2388.5,0.8265]
[1727939707853,6.69802,2388.8,2388.5,0.8265]
[1727939708165,3.34896,2388.8,2388.5,0.8265]
[1727939710138,3.34882,2388.9,2388.5,0.8265]
[1727939710810,3.34897,2388.8,2388.5,0.8265]
[1727939711140,6.69806,2388.8,2388.5,0.8265]
[1727939711659,3.34897,2388.8,2388.5,0.8265]
[1727939712242,3.34911,2388.7,2388.5,0.8265]
[1727939712866,3.34911,2388.7,2388.3,0.7735]
[1727939716242,6.16477841,2388.7,2388.3,0.7735]
[1727939716586,3.34974,2388.3,2387.9,0.7745]
[1727939716744,2.81566841,2388.2,2387.9,0.7745]
[1727939716948,6.6995,2388.3,2387.9,0.7745]
[1727939717340,3.34974,2388.3,2387.9,0.7745]
[1727939717958,3.3499,2388.2,2387.7,4.1521]
[1727939718163,3.3499,2388.2,2387.7,4.902363]
[1727939718385,3.3499,2388.2,2387.7,1.551863]
[1727939718605,3.3499,2388.2,2387.7,4.902353]
[1727939719703,3.0,2388.2,2387.8,3.35034]
[1727939719907,3.0,2388.2,2387.8,4.5106623]
[1727939721177,3.0,2388.2,2387.8,1.1603223]
[1727939721488,3.0,2388.2,2387.7,0.8016]
[1727939721489,6.34987,2388.2,2387.7,4.1521]
[1727939722375,3.34973,2388.3,2387.7,4.1521]
[1727939722576,6.34944,2388.5,2388.1,3.34984]
[1727939722577,3.0,2388.5,2388.1,3.34984]
[1727939722785,3.34869,2389.0,2388.0,0.8142]
[1727939722786,3.34889,2388.9,2388.2,0.416404]
[1727939723032,3.34889,2388.9,2388.4,0.8142]
[1727939723186,3.34889,2388.9,2388.5,0.416378]
[1727939723486,3.34889,2388.9,2388.4,4.16371]
[1727939723901,6.69779,2388.9,2388.4,4.16371]
[1727939724275,3.34864,2389.1,2388.5,3.34936]
[1727939724475,6.69727,2389.1,2388.6,0.416356]
[1727939724678,3.34863,2389.1,2388.6,0.416356]
[1727939724879,3.34876,2389.0,2388.6,0.416356]
[1727939726042,3.34863,2389.1,2388.6,0.416356]
[1727939726395,3.3488,2389.0,2388.6,0.416356]
[1727939729632,3.34883,2388.9,2388.6,0.416356]
[1727939729825,3.34883,2388.9,2388.4,0.89772358]
[1727939730031,3.34883,2388.9,2388.4,0.8142]
[1727939730424,2.81566841,2388.8,2388.4,0.8142]
[1727939730620,3.34938,2388.5,2388.2,0.7912]
[1727939732543,3.34921,2388.7,2388.2,0.7912]
[1727939732544,3.3492,2388.7,2388.2,4.14092]
[1727939733137,6.34898,2388.8,2388.2,4.14092]
[1727939733362,3.3491,2388.7,2388.2,4.5885133]
[1727939735761,3.34898,2388.8,2388.3,4.14074]
[1727939735931,3.34898,2388.8,2388.4,0.79380533]
[1727939736138,3.34898,2388.8,2388.3,4.14074]
[1727939737433,3.34898,2388.8,2388.3,0.7911]
[1727939737635,2.81566841,2388.8,2388.3,0.7911]
[1727939737839,3.34964,2388.4,2388.0,0.7966]
[1727939738042,3.34927,2388.6,2388.1,3.34983]
[1727939738350,6.34919,2388.7,2388.2,3.34978]
[1727939738521,3.34925,2388.6,2388.2,3.34978]
[1727939738723,3.34925,2388.6,2388.1,4.14653]
[1727939738964,3.34925,2388.6,2388.1,4.6361537]
[1727939739165,9.69836,2388.7,2388.1,4.6361537]
[1727939739663,3.34927,2388.6,2388.1,4.6361537]
[1727939741457,3.34961,2388.4,2388.1,0.7966]
[1727939741744,3.34961,2388.4,2387.9,0.8261]
[1727939741745,3.34973,2388.3,2387.9,0.8261]
[1727939741944,3.35003,2388.1,2387.6,4.17665]
[1727939742165,3.35003,2388.1,2387.6,4.511705]
[1727939742579,3.35003,2388.1,2387.6,7.862265]
[1727939742749,2.81566841,2388.0,2387.3,3.35105]
[1727939742951,3.35039,2387.8,2387.3,4.100748]
[1727939743183,2.81566841,2387.8,2387.4,4.14571]
[1727939743344,3.35003,2388.1,2387.6,3.35062]
[1727939743544,5.00052288,2388.2,2387.9,0.8138]
[1727939743545,2.18485447,2388.2,2387.9,0.8138]
[1727939743744,3.34984,2388.2,2387.9,0.8138]
[1727939743990,3.34996,2388.1,2387.9,0.8138]
[1727939744344,3.35016,2388.0,2387.7,0.7689]
[1727939744546,3.35016,2388.0,2387.4,6.7016]
[1727939744743,3.35036,2387.9,2387.4,3.35078]
[1727939745584,3.35039,2387.8,2387.2,7.4612]
[1727939745760,3.35039,2387.8,2387.3,0.80151308]
[1727939745946,3.35039,2387.8,2387.3,4.15257308]
[1727939746156,3.35039,2387.8,2387.2,4.1101]
[1727939746157,3.35064,2387.6,2387.2,4.1101]
[1727939746357,3.35085,2387.5,2387.2,0.759]
[1727939746776,3.35064,2387.6,2387.2,0.759]
[1727939747551,3.35064,2387.6,2387.3,0.7552]
[1727939747552,3.0,2387.6,2387.3,0.7552]
[1727939747905,3.0,2387.8,2387.4,6.7017]
[1727939748192,3.0,2387.8,2387.4,3.35085]
[1727939748400,3.35003,2388.1,2387.5,3.35075]
[1727939748698,6.69954,2388.3,2387.6,0.7557]
[1727939748896,6.69954,2388.3,2387.9,0.7557]
[1727939748897,3.34974,2388.3,2387.9,0.7557]
[1727939749545,6.6995,2388.3,2387.9,0.7557]
[1727939749997,3.34912,2388.7,2387.9,4.851459]
[1727939749998,6.699,2388.5,2387.9,4.851459]
[1727939750175,3.34948,2388.5,2388.0,3.35001]
[1727939750357,3.34948,2388.5,2388.1,0.04947927]
[1727939750694,9.31840991,2388.9,2388.3,3.34959]
[1727939750996,9.31840991,2388.9,2388.4,3.3495]
[1727939750997,3.78595466,2388.9,2388.4,3.3495]
[1727939751155,3.34896,2388.8,2388.4,0.04996381]
[1727939751345,3.3489,2388.9,2388.4,0.84312609]
[1727939751585,3.78596353,2388.9,2388.4,0.84312609]
[1727939751831,7.13489353,2388.9,2388.4,0.84312609]
[1727939751989,3.78596353,2388.9,2388.4,0.84312609]
[1727939752191,3.3489,2388.9,2388.4,0.84312609]
[1727939752525,3.34896,2388.8,2388.4,0.79316228]
[1727939753734,3.34896,2388.8,2388.4,0.8447928]
[1727939754302,3.34896,2388.8,2388.5,0.46064318]
[1727939756149,3.3489,2388.9,2388.5,0.46064318]
[1727939756508,3.34904,2388.8,2388.5,0.46064318]
[1727939757610,3.3491,2388.7,2388.4,0.79316228]
[1727939757818,3.3491,2388.7,2388.2,4.11997]
[1727939758846,3.34931,2388.6,2388.2,0.7703]
[1727939759051,3.34952,2388.4,2388.2,0.7703]
[1727939759420,6.16527841,2388.4,2387.9,0.7601]
[1727939759829,3.34961,2388.4,2387.9,0.7601]
[1727939760035,6.69922,2388.4,2387.9,0.7601]
[1727939760216,2.81566841,2388.2,2387.9,0.7601]
[1727939760440,3.35025,2387.9,2387.5,0.8274]
[1727939761267,6.70058,2387.9,2387.5,0.8274]
[1727939761562,3.35025,2387.9,2387.5,0.8274]
[1727939762627,2.81566841,2388.0,2387.5,4.22575384]
[1727939762628,3.35015,2388.0,2387.5,4.22575384]
[1727939762855,3.35015,2388.0,2387.6,0.417831]
[1727939765370,3.3498,2388.2,2387.8,0.8245]
[1727939765556,3.34996,2388.1,2387.8,0.8245]
[1727939765875,3.35008,2388.0,2387.4,0.8115]
[1727939766030,3.35036,2387.8,2387.4,0.8115]
[1727939766442,2.81566841,2388.0,2387.4,0.8115]
[1727939766682,5.18304317,2388.4,2387.0,0.7822]
[1727939766683,3.35078,2387.5,2387.0,0.7822]
[1727939766832,3.35093,2387.4,2387.0,0.7822]
[1727939767034,3.35093,2387.4,2387.0,1.195571]
[1727939767250,3.35108,2387.3,2387.0,0.7822]
[1727939767465,3.35129,2387.2,2387.0,0.7822]
[1727939767771,3.351,2387.4,2387.0,0.7822]
[1727939767928,3.35109,2387.3,2387.0,0.7822]
[1727939768132,3.35109,2387.3,2386.3,3.114002]
[1727939768133,3.35134,2387.1,2386.6,0.7545]
[1727939768834,3.35134,2387.1,2386.6,4.10654]
[1727939769346,3.35134,2387.1,2386.6,0.7545]
[1727939769678,3.35122,2387.2,2386.6,0.7545]
[1727939769679,3.35122,2387.2,2386.7,3.35189]
[1727939769867,3.35122,2387.2,2386.7,4.097737]
[1727939770176,6.70251,2387.2,2386.7,0.745847]
[1727939770407,3.35122,2387.2,2386.7,0.745847]
[1727939770554,3.35122,2387.2,2386.7,3.35186]
[1727939771009,6.70251,2387.2,2386.6,4.10654]
[1727939771213,3.35122,2387.2,2386.6,4.10654]
[1727939771510,3.35122,2387.2,2386.7,3.762424]
[1727939771657,3.0,2387.3,2386.8,3.35173]
[1727939772006,3.35122,2387.2,2386.7,0.410654]
[1727939772158,3.35122,2387.2,2386.7,3.762544]
[1727939772357,6.7032,2387.0,2386.6,0.7545]
[1727939772568,3.35159,2387.0,2386.6,0.7545]
[1727939772794,3.35131,2387.2,2386.6,4.10653]
[1727939772998,3.35138,2387.1,2386.7,0.410653]
[1727939773363,3.35138,2387.1,2386.7,0.49444356]
[1727939773805,3.35138,2387.1,2386.7,0.410653]
[1727939774310,3.35138,2387.1,2386.6,4.10653]
[1727939774311,2.81566841,2387.1,2386.6,0.7545]
[1727939774470,3.3513,2387.2,2386.6,0.7545]
[1727939774668,3.3513,2387.2,2386.6,4.10654]
[1727939774899,6.35106,2387.3,2386.8,3.35175]
[1727939775065,6.35106,2387.3,2386.8,6.7035]
[1727939775401,3.3509,2387.5,2386.9,3.35162]
[1727939775402,6.70181,2387.5,2386.9,3.35162]
[1727939775614,3.35106,2387.3,2386.9,0.767]
[1727939775808,3.35106,2387.3,2387.0,0.411875]
[1727939776301,6.16623841,2387.7,2387.0,3.763345]
[1727939776604,3.35057,2387.7,2387.2,4.11029]
[1727939776765,3.35057,2387.7,2386.7,6.57819241]
[1727939776766,3.35107,2387.3,2386.9,0.7617]
[1727939777269,3.35107,2387.3,2386.6,0.7518]
[1727939777270,3.35184,2386.8,2386.6,0.7518]
[1727939778589,3.35155,2387.0,2386.6,0.7518]
[1727939779478,3.35177,2386.8,2386.4,0.8004]
[1727939783434,3.0,2387.1,2386.3,0.114002]
[1727939783636,3.35211,2386.6,2386.3,0.114002]
[1727939784194,3.35187,2386.8,2386.3,0.114002]
[1727939784393,6.16730841,2386.9,2386.4,3.35232]
[1727939784994,5.81566841,2387.1,2386.5,0.7927]
[1727939785194,3.35149,2387.0,2386.5,0.7927]
[1727939785415,3.0,2386.9,2386.5,4.14486]
[1727939785617,3.35149,2387.0,2386.5,4.14486]
[1727939785841,3.35149,2387.0,2386.5,4.9059692]
[1727939787337,6.3515,2387.0,2386.6,3.35203]
[1727939787638,6.3515,2387.0,2386.5,4.9059592]
[1727939788540,6.16741841,2386.9,2386.3,0.888102]
[1727939788731,6.16741841,2386.9,2386.4,3.35221]
[1727939788732,3.35175,2386.9,2386.4,3.35221]
[1727939788925,6.7035,2386.9,2386.4,3.35221]
[1727939789439,3.35175,2386.9,2386.4,3.35221]
[1727939790112,3.0,2387.0,2386.4,3.35221]
[1727939790438,3.35162,2386.9,2386.4,3.35221]
[1727939791039,3.35198,2386.7,2386.3,0.888102]
[1727939792058,3.35216,2386.6,2386.3,0.114002]
[1727939792259,3.3522,2386.5,2386.3,0.114002]
[1727939794328,3.35232,2386.4,2386.3,0.114002]
[1727939794534,6.35232,2386.4,2386.3,0.114002]
[1727939795425,6.90232,2386.4,2386.3,0.114002]
[1727939795955,13.83932,2386.4,2386.3,0.114002]
[1727939796253,6.35232,2386.4,2386.3,0.114002]
[1727939796464,6.90232,2386.4,2386.3,0.114002]
[1727939797553,11.31932,2386.4,2386.3,0.114002]
[1727939799220,6.90232,2386.4,2386.3,0.114002]
[1727939800263,10.31832,2386.4,2386.3,0.114002]
[1727939800430,10.11212,2386.4,2386.3,0.114002]
[1727939800627,6.90232,2386.4,2386.3,0.114002]
[1727939802039,6.90232,2386.4,2384.1,7.44]
[1727939802040,3.0,2386.3,2384.8,0.8084]
[1727939802229,5.88666841,2386.4,2384.8,0.8084]
[1727939802230,2.81566841,2385.0,2384.8,0.8084]
[1727939802565,6.17005841,2385.0,2384.8,0.8084]
[1727939802920,3.0,2385.3,2384.8,0.8084]
[1727939803122,6.16947841,2385.4,2384.2,2.81566841]
[1727939803123,3.0,2385.4,2385.0,0.7974]
[1727939803344,7.39,2385.5,2385.2,0.8188]
[1727939803554,6.70653,2385.8,2385.2,0.8188]
[1727939803555,3.0,2385.7,2385.2,0.8188]
[1727939803766,6.35331,2385.7,2385.2,4.17274]
[1727939803921,6.35331,2385.7,2385.2,4.92542]
[1727939804122,3.35346,2385.6,2385.2,1.57148]
[1727939804623,3.0,2385.7,2385.2,1.57148]
[1727939805061,3.0,2385.7,2385.2,4.10661]
[1727939805224,6.16891841,2385.8,2385.3,1.567367]
[1727939805225,2.81566841,2385.8,2385.3,1.567367]
[1727939805426,2.81566841,2385.8,2385.3,0.8213]
[1727939805724,6.16886841,2385.8,2385.3,0.8213]
[1727939806469,3.35304,2385.9,2385.3,0.8213]
[1727939806653,3.0,2385.9,2385.5,4.12119]
[1727939806857,6.35304,2385.9,2385.5,0.7676]
[1727939807223,9.70619,2385.9,2385.5,0.7676]
[1727939807457,2.81566841,2385.8,2385.5,0.7676]
[1727939808472,3.0,2385.9,2385.5,4.12112]
[1727939808803,3.0,2385.9,2385.5,4.533246]
[1727939809897,3.0,2385.9,2385.5,1.179726]
[1727939810263,3.0,2385.9,2385.5,4.533266]
[1727939810662,3.0,2385.9,2385.5,1.179726]
[1727939810871,3.0,2385.9,2385.5,4.533206]
[1727939811389,3.0,2385.9,2385.5,1.179726]
[1727939811708,3.0,2385.9,2385.5,4.533276]
[1727939812900,6.35304,2385.9,2385.5,1.179726]
[1727939813305,3.0,2385.9,2385.5,4.533236]
[1727939813510,6.35289,2386.0,2385.5,4.533236]
[1727939813806,9.16855841,2386.0,2385.5,1.179726]
[1727939815068,3.35304,2385.9,2385.5,1.179726]
[1727939815412,5.81566841,2386.0,2385.5,4.12118]
[1727939815613,9.16857841,2386.0,2385.5,0.7676]
[1727939815790,9.16857841,2386.0,2385.5,4.12118]
[1727939816281,9.16857841,2386.0,2385.5,0.7676]
[1727939817107,9.16857841,2386.0,2385.5,4.12118]
[1727939817305,10.74256,2386.3,2385.6,0.7554]
[1727939817489,2.81566841,2386.4,2385.9,4.10835]
[1727939817490,3.35236,2386.4,2385.9,4.10835]
[1727939817791,3.35236,2386.4,2385.9,0.7554]
[1727939818089,3.35272,2386.2,2385.9,0.7554]
[1727939818624,6.16821841,2386.3,2385.9,0.7554]
[1727939818625,3.35275,2386.1,2385.9,0.7554]
[1727939820222,6.16822841,2386.3,2385.9,0.7554]
[1727939820425,6.16821841,2386.3,2385.9,0.7554]
[1727939820722,9.52077841,2386.3,2385.9,0.7554]
[1727939821438,2.81566841,2386.1,2385.9,0.7554]
[1727939821731,3.0,2386.0,2385.5,0.7724]
[1727939821896,3.0,2386.0,2384.7,4.23009733]
[1727939821897,3.3536,2385.5,2385.3,0.7724]
[1727939822935,3.35339,2385.7,2384.9,0.8025]
[1727939822936,2.81566841,2385.4,2384.9,0.8025]
[1727939823240,2.81566841,2385.4,2383.9,1.87058066]
[1727939823241,3.35457,2384.8,2384.3,0.8025]
[1727939823394,2.81566841,2384.7,2384.3,0.8025]
[1727939824189,6.17040841,2384.7,2384.3,0.8025]
[1727939824389,3.35501,2384.5,2384.3,0.8025]
[1727939824593,3.3557,2384.0,2383.9,0.119686]
[1727939824826,3.3557,2384.0,2382.9,4.17911]
[1727939824827,3.0,2383.6,2382.9,4.17911]
[1727939825029,2.81566841,2383.3,2383.2,0.04039692]
[1727939825196,3.0,2383.3,2382.5,3.3578]
[1727939825536,6.35669,2383.3,2382.9,0.7853]
[1727939825741,6.83703389,2383.2,2382.9,0.7853]
[1727939826038,6.83703389,2383.2,2382.6,0.7563]
[1727939826244,3.48018389,2382.8,2382.6,0.10062991]
[1727939826423,3.0,2382.6,2382.0,4.11936]
[1727939826592,3.0,2382.7,2382.1,3.35837]
[1727939826797,6.83719389,2383.1,2382.3,3.35809]
[1727939827022,3.0,2383.0,2382.3,3.35809]
[1727939827245,3.0,2383.0,2382.2,3.35814]
[1727939827539,3.0,2383.0,2382.4,3.35793]
[1727939827738,3.35701,2383.1,2382.2,3.770074]
[1727939827739,3.48018389,2383.1,2382.2,3.770074]
[1727939828033,3.0,2383.0,2382.4,3.35794]
[1727939828942,6.35717,2383.0,2382.2,3.770074]
[1727939829106,3.0,2383.0,2382.3,3.35805]
[1727939829429,3.0,2383.0,2382.4,3.35794]
[1727939829636,3.35644,2383.5,2382.5,3.35781]
[1727939830638,3.35658,2383.4,2382.5,6.71552]
[1727939830822,3.0,2383.4,2382.6,3.35763]
[1727939831137,6.35656,2383.4,2382.5,3.35771]
[1727939831335,3.0,2383.2,2382.5,6.71541]
[1727939831511,3.0,2383.2,2382.5,6.71542]
[1727939831925,3.0,2383.3,2382.5,3.3577]
[1727939832120,3.0,2383.3,2382.6,3.35758]
[1727939832436,3.0,2382.9,2382.4,0.7962]
[1727939832595,3.0,2382.9,2382.4,4.15415]
[1727939832796,3.0,2383.4,2382.7,3.3575]
[1727939833217,3.35618,2383.7,2382.7,3.3575]
[1727939833218,3.35618,2383.7,2382.9,3.35723]
[1727939833501,3.3563,2383.6,2382.9,3.35723]
[1727939834340,3.48018389,2383.6,2382.9,3.35713]
[1727939834540,3.0,2383.6,2382.9,3.35713]
[1727939834834,3.0,2383.4,2382.8,3.35738]
[1727939835004,3.0,2383.4,2382.7,3.35746]
[1727939835005,6.3566,2383.4,2382.7,3.35746]
[1727939835209,3.0,2383.4,2382.7,3.35746]
[1727939835396,3.0,2383.4,2382.7,3.35742]
[1727939835397,6.35657,2383.4,2382.7,3.35742]
[1727939835602,3.35669,2383.3,2382.7,3.35742]
[1727939836200,3.35669,2383.3,2382.4,1.211615]
[1727939836201,3.35706,2383.1,2382.4,0.7962]
[1727939836454,3.35726,2382.9,2382.4,0.7962]
[1727939836736,9.83731389,2383.0,2382.4,0.7962]
[1727939836940,9.83731389,2383.0,2382.2,3.35814]
[1727939836941,3.35729,2382.9,2382.2,3.35814]